Cogmind - Beta 10.1 @@@ ROGUE MODE // 2020.09.24 @ 02:13:37 Player: FiSHBoY Result: Destroyed by as-92331 with Assembled Rifle Performance ------------- Evolutions (1) 500 Regions Visited (4) 800 Robots Destroyed (28) 140 Value Destroyed (995) 995 Prototype IDs (1) 20 Alien Tech Used (0) 0 Bonus (0) 0 TOTAL SCORE: 2455 Bonus ------- None Cogmind --------- Core Integrity 0/400 Matter 178/300 Energy 280/280 System Corruption 2% Temperature Cool (0) Movement Treading (160) Location -9/Mines Parts ------- > --- POWER (2) -------- Heavy Ion Engine > --- PROPULSION (3) --- Improved Treads > --- UTILITY (2) ------ (None) > --- WEAPON (2) ------- (None) > --- INVENTORY (4) ---- Heat Sink EMP Trap EMP Trap Peak State ------------ > --- POWER ------------ Heavy Ion Engine Light Nuclear Core > --- PROPULSION ------- Aluminum Leg Aluminum Leg Wheel > --- UTILITY ---------- Heat Sink Power Shielding > --- WEAPON ----------- Small Laser Rocket Launcher > --- INVENTORY -------- Wheel EMP Trap EMP Trap [Rating: 14] Favorites ----------- Power Light Nuclear Core Engine Heavy Ion Engine Power Core Light Nuclear Core Propulsion Aluminum Leg Treads Improved Treads Leg Aluminum Leg Wheel Wheel Utility Power Shielding Device Heat Sink Protection Power Shielding Weapon Light Assault Rifle Energy Gun Small Laser Energy Cannon EM Pulse Cannon Ballistic Gun Light Assault Rifle Launcher Rocket Launcher Build | -11 -10 -10 -9 -9 ------- Run | Scr Mat Min Mat Min Slots Evolved 2 | . . . 2 . Power 1 | . . . 1 . Propulsion 1 | . . . 1 . Utility . | . . . . . Weapon . | . . . . . Parts Attached 21 | 6 1 6 8 . Power 3 | 1 . 1 1 . Engine 2 | 1 . . 1 . Core 1 | . . 1 . . Reactor . | . . . . . Propulsion 8 | 2 . 2 4 . Treads 1 | . . . 1 . Leg 4 | 2 . 2 . . Wheel 3 | . . . 3 . Hover . | . . . . . Flight . | . . . . . Utility 4 | 1 1 1 1 . Device 2 | 1 . 1 . . Storage . | . . . . . Processor . | . . . . . Hackware . | . . . . . Protection 2 | . 1 . 1 . Artifact . | . . . . . Weapon 6 | 2 . 2 2 . Energy Gun 1 | . . 1 . . Energy Cannon 1 | . . . 1 . Ballistic Gun 3 | 2 . . 1 . Ballistic Cannon . | . . . . . Launcher 1 | . . 1 . . Special Weapon . | . . . . . Impact Weapon . | . . . . . Slashing Weapon . | . . . . . Piercing Weapon . | . . . . . Special Melee Weapon . | . . . . . Unidentified Prototypes 1 | . . . 1 . Parts Lost 12 | . 1 2 8 1 Power 2 | . 1 . 1 . Propulsion 3 | . . 1 2 . Utility 3 | . . 1 1 1 Weapon 4 | . . . 4 . Highest Loss Streak 4 | . 1 2 4 1 Average Slot Usage (%) 82 | . 88 95 73 29 Engine 6 | . 12 . 10 11 Core 7 | . . 11 6 . Leg 18 | . 28 27 9 . Wheel 3 | . . . 8 . Device 10 | . 14 13 7 . Protection 12 | . 4 14 13 7 Energy Gun 6 | . . 9 5 . Energy Cannon 1 | . . . 2 . Ballistic Gun 8 | . 28 8 3 . Launcher 6 | . . 9 6 . Naked Turns . | . . . . . Heaviest Build 25 | 6 7 12 25 9 Greatest Support 23 | 3 20 20 23 23 Greatest Overweight (x) 2 | 1 1 2 2 . Average Overweight (x) . | . . . . . Largest Inventory Capacity 4 | 4 4 4 4 4 Average Capacity 4 | 4 4 4 4 4 Most Carried 4 | 4 4 4 4 3 Average Carried 3 | 2 3 3 3 3 Final Capacity 4 | 4 4 4 4 4 Final Carried 4 | 4 4 4 3 3 Class Distribution -------------------- 52% | Mutant 47% | Scavenger-Mutant Dominant Class ---------------- Mutant | -10/Materials Scavenger-Mutant | -10/Mines Mutant | -9/Materials Mutant | -9/Mines Resources | -11 -10 -10 -9 -9 ----------- Run | Scr Mat Min Mat Min Matter Collected 564 | 267 45 70 182 . Remotely . | . . . . . Salvage Created 897 | 36 136 96 629 . Parts 49 | 2 2 5 40 . Haulers Intercepted . | . . . . . Recyclers Shooed . | . . . . . Parts Field Recycled . | . . . . . Retrieved Matter . | . . . . . Parts Self-Destructed . | . . . . . Prevented . | . . . . . Kills | -11 -10 -10 -9 -9 ------- Run | Scr Mat Min Mat Min Combat Hostiles Destroyed 25 | 1 3 2 19 . Guns 9 | 1 3 2 3 . Cannons 5 | . . . 5 . AOE 11 | . . . 11 . Classes Destroyed 5 | 1 . . 4 . Builder 2 | . . . 2 . Watcher 1 | . . . 1 . Grunt 22 | 1 3 2 16 . Brawler 1 | . . . 1 . Sentry 2 | . . . 2 . Best Kill Streak 8 | 1 3 2 8 . Combat Bots Only 6 | 1 3 2 6 . Max Kills in Single Turn 2 | 1 1 1 2 . Gunslinging . | . . . . . Exploded 1 | . . . 1 . Melee . | . . . . . Uniques/NPCs Destroyed . | . . . . . Combat | -11 -10 -10 -9 -9 -------- Run | Scr Mat Min Mat Min Damage Taken 1979 | 65 347 111 1244 212 Core 517 | 11 77 26 277 126 Absorbed by Shields . | . . . . . Core Remaining (%) 74 | 95 . 54 . . Volleys Fired 80 | 5 20 10 45 . Largest 2 | 2 2 2 2 . Hottest 86 | 40 40 40 86 . Shots Fired 124 | 7 40 20 57 . Gun 94 | 7 40 20 27 . Cannon 15 | . . . 15 . Launcher 15 | . . . 15 . Special . | . . . . . Kinetic 93 | 7 40 20 26 . Thermal 1 | . . . 1 . Explosive 15 | . . . 15 . Electromagnetic 15 | . . . 15 . Robot Hit Streak 8 | 2 8 6 8 . Robot Miss Streak 3 | 1 2 2 3 . Penetration Max . | . . . . . Secondary Targets 1 | . 1 . . . Max Gunslinging Chain 1 | . 1 . . . Shots Hit Robots 82 | 4 27 14 37 . Core Hits 51 | 2 12 6 31 . Critical Hits . | . . . . . Critical Kills . | . . . . . Critical Parts Destroyed . | . . . . . Melee Attacks . | . . . . . Impact . | . . . . . Slashing . | . . . . . Piercing . | . . . . . Sneak Attacks . | . . . . . Combat Hostiles . | . . . . . Follow-up Attacks . | . . . . . Damage Inflicted 1969 | 35 174 94 1666 . Guns 571 | 35 174 94 268 . Cannons 237 | . . . 237 . Explosions 1161 | . . . 1161 . Melee . | . . . . . Ramming . | . . . . . Kinetic 561 | 35 174 94 258 . Thermal 103 | . . . 103 . Explosive 1068 | . . . 1068 . Electromagnetic 237 | . . . 237 . Impact . | . . . . . Slashing . | . . . . . Piercing . | . . . . . Highest Corruption 2 | . . . 1 2 Average Corruption 1 | . . . 1 1 Corruption Purged . | . . . . . Effects 1 | . . . 1 . Targeting Errors 1 | . . . 1 . Overload Shots . | . . . . . Overflow Damage . | . . . . . Projectiles . | . . . . . Explosions . | . . . . . Melee . | . . . . . Knockbacks . | . . . . . Impact . | . . . . . Kinetic . | . . . . . Secondary . | . . . . . Self-Inflicted Damage 110 | . . . 110 . Shots 5 | . . . 5 . Rammed . | . . . . . Targets Rammed . | . . . . . Kicked . | . . . . . Crushed . | . . . . . Highest Temperature 260 | 1 . 4 260 . Average Temperature 130 | 1 . 4 138 . Received Heat Transfer 853 | 36 198 63 516 40 Effects 1 | . . . 1 . Energy Bleed 1 | . . . 1 . Siege Activations . | . . . . . Robots Corrupted . | . . . . . Combat Hostiles . | . . . . . Parts Fried 1 | . . . 1 . Impact Corruptions . | . . . . . Robots Melted . | . . . . . Combat Hostiles . | . . . . . Parts Melted . | . . . . . Heat Transferred 175 | . . . 175 . Parts Sabotaged . | . . . . . Parts Stolen . | . . . . . Parts Stripped . | . . . . . Power Chain Reactions 1 | . . . 1 . Missiles Intercepted . | . . . . . Alert | -11 -10 -10 -9 -9 ------- Run | Scr Mat Min Mat Min Peak Influence 347 | 20 115 74 347 117 Initial 117 | . 13 44 . 117 Average 102 | 4 35 59 177 112 Maximum Alert Level 1 | . . . 1 . Low Security (%) 79 | 100 100 100 50 100 Level 1 20 | . . . 49 . Level 2 . | . . . . . Level 3 . | . . . . . Level 4 . | . . . . . Level 5 . | . . . . . High Security . | . . . . . Max Security . | . . . . . Squads Dispatched 5 | . 1 . 4 . Investigation 3 | . . . 3 . Extermination . | . . . . . Reinforcement 2 | . 1 . 1 . Assault . | . . . . . Garrison . | . . . . . Intercept . | . . . . . Construction Impeded 1 | . . . 1 . Haulers Reinforced . | . . . . . Stealth | -11 -10 -10 -9 -9 --------- Run | Scr Mat Min Mat Min Distress Signals 3 | . 1 . 2 . Communications Jammed . | . . . . . Distress Signals . | . . . . . Times Spotted 66 | 1 10 2 31 22 Peak Tracking Total 22 | 1 5 2 5 22 Tactical Retreats 3 | . . . 3 . Traps | -11 -10 -10 -9 -9 ------- Run | Scr Mat Min Mat Min Traps Triggered 4 | . . . 4 . Indirectly . | . . . . . Trap Hack Attempts . | . . . . . Triggered . | . . . . . Disarmed . | . . . . . Reprogrammed . | . . . . . Reused . | . . . . . Traps Extracted . | . . . . . Installed . | . . . . . Triggered . | . . . . . Machines | -11 -10 -10 -9 -9 ---------- Run | Scr Mat Min Mat Min Machines Disabled 3 | . . . 3 . Max in Single Turn 1 | . . . 1 . Machines Sabotaged . | . . . . . Garrisons Compromised . | . . . . . Overloaded Fab Kills . | . . . . . Fab Network Shutdowns . | . . . . . Hacking | -11 -10 -10 -9 -9 --------- Run | Scr Mat Min Mat Min Machines Accessed 4 | . 1 . 3 . Terminals 4 | . 1 . 3 . Fabricators . | . . . . . Repair Stations . | . . . . . Recycling Units . | . . . . . Scanalyzers . | . . . . . Garrison Access . | . . . . . Total Hacks 15 | . 4 . 11 . Successful 8 | . 3 . 5 . Failed 7 | . 1 . 6 . Catastrophic 1 | . . . 1 . Database Lockouts . | . . . . . Manual 2 | . 1 . 1 . Terminals 15 | . 4 . 11 . Fabricators . | . . . . . Repair Stations . | . . . . . Recycling Units . | . . . . . Scanalyzers . | . . . . . Garrison Access . | . . . . . Terminal Hacks 8 | . 3 . 5 . Record 4 | . 2 . 2 . Alert Level 1 | . . . 1 . Maintenance Status 1 | . . . 1 . Recall Reinforcements 1 | . . . 1 . Registered Components 1 | . 1 . . . Fabricator Hacks . | . . . . . Repair Station Hacks . | . . . . . Recycling Unit Hacks . | . . . . . Scanalyzer . | . . . . . Garrison Access Hacks . | . . . . . Unauthorized Hacks . | . . . . . Terminals . | . . . . . Fabricators . | . . . . . Repair Stations . | . . . . . Recycling Units . | . . . . . Scanalyzers . | . . . . . Garrison Access . | . . . . . Data Cores Recovered . | . . . . . Used . | . . . . . Hacking Detections 4 | . 1 . 3 . Full Trace Events 1 | . . . 1 . Feedback Events . | . . . . . Feedback Blocked . | . . . . . Robot Schematics Acquired . | . . . . . Robots Built . | . . . . . Matter . | . . . . . Time . | . . . . . Total Robot Build Rating . | . . . . . Part Schematics Acquired . | . . . . . Parts Built . | . . . . . Matter . | . . . . . Time . | . . . . . Total Part Build Rating . | . . . . . Parts Repaired . | . . . . . Time . | . . . . . Parts Recycled . | . . . . . Recycled Matter . | . . . . . Retrieved Matter . | . . . . . Retrieved Components . | . . . . . Parts Scanalyzed . | . . . . . Part Schematics Acquired . | . . . . . Parts Damaged . | . . . . . Bothacking | -11 -10 -10 -9 -9 ------------ Run | Scr Mat Min Mat Min Used RIF Installer . | . . . . . Robots Hacked . | . . . . . Non-combat . | . . . . . Combat . | . . . . . Robot Hacks Applied . | . . . . . Relay Couplers Released . | . . . . . Robots Rewired . | . . . . . Allies Hacked . | . . . . . Hacks Repelled . | . . . . . Allies | -11 -10 -10 -9 -9 -------- Run | Scr Mat Min Mat Min Total Allies . | . . . . . Largest Group . | . . . . . Highest-Rated Group . | . . . . . Highest-Rated Ally . | . . . . . Total Orders . | . . . . . Ally Attacks . | . . . . . Total Damage . | . . . . . Kills . | . . . . . Allies Corrupted . | . . . . . Allies Melted . | . . . . . Intel | -11 -10 -10 -9 -9 ------- Run | Scr Mat Min Mat Min Robot Analysis Total . | . . . . . Derelict Logs Recovered 1 | . . 1 . . Drone Launches . | . . . . . Drone Recoveries . | . . . . . Exploration | -11 -10 -10 -9 -9 ------------- Run | Scr Mat Min Mat Min Turns Passed 1273 | 100 155 461 530 27 Spaces Moved 959 | 107 87 350 398 17 Core 149 | 107 39 3 . . Treads 37 | . . . 20 17 Legs 556 | . 48 347 161 . Wheels 217 | . . . 217 . Hover . | . . . . . Flight . | . . . . . Fastest Speed 50 | 50 100 120 80 160 Average Speed 108 | 70 111 120 104 160 Slowest Speed 160 | 100 120 150 160 160 Overloaded Moves . | . . . . . Propulsion Burnouts . | . . . . . Robots Hopped . | . . . . . Cave-ins Triggered . | . . . . . Exploration Rate (%) 29 | 6 20 68 43 11 Regions Visited 4 Branch Regions 2 Pre-discovered Areas . | . . . . . Known Exits Taken . | . . . . . Unknown Exits Taken 4 | 1 1 1 1 . Scrap Searched 1 | . . 1 . . Spaces Dug . | . . . . . Terrain Destroyed 104 | . . . 104 . Melee . | . . . . . Projectile . | . . . . . AOE 104 | . . . 104 . Terrain Rammed . | . . . . . Walls Destroyed . | . . . . . Machines Disabled . | . . . . . Actions | -11 -10 -10 -9 -9 --------- Run | Scr Mat Min Mat Min Total 1093 | 125 115 375 461 17 Wait . | . . . . . Move 955 | 106 86 349 397 17 Hop . | . . . . . Pick Up 24 | 8 4 6 6 . Fast Attach 4 | 2 1 1 . . Attach 15 | 4 . 5 6 . Detach 2 | . . . 2 . Swap 2 | . . . 2 . Drop 11 | . 4 4 3 . Fire 80 | 5 20 10 45 . Melee . | . . . . . Ram . | . . . . . Kick . | . . . . . Crush . | . . . . . Escape Stasis . | . . . . . Rewire . | . . . . . Trap . | . . . . . Miscellaneous . | . . . . . Route ------- -11/Scrapyard -10/Materials -10/Mines (discovered 2 exits: *Mat x2) -9/Materials (discovered 3 exits: [*Mat] / [*Min] / Sto) -9/Mines History --------- Turn | Location | Event 2 | -11/Scrapyard | Met Revision 17 64 | -11/Scrapyard | Discovered new exit (range 8) 101 | -11/Scrapyard | Entered Materials 243 | -10/Materials | Discovered new exit (range 9) 256 | -10/Materials | Entered Mines 272 | -10/Mines | Discovered new exit (range 8) 316 | -10/Mines | Build established: Mutant 387 | -10/Mines | Received a Rocket Launcher from a helpful Derelict 442 | -10/Mines | Found a hidden stash of uninstalled traps 531 | -10/Mines | Learned 2 Materials zone layouts 626 | -10/Mines | Build established: Scavenger-Mutant 701 | -10/Mines | Discovered new exit (range 7) 717 | -10/Mines | Entered Materials 717 | -9/Materials | Evolved 2 slots: Power x1, Propulsion x1 718 | -9/Materials | Identified exit to Storage 1073 | -9/Materials | Lost 3 parts (1p1n1w) 1165 | -9/Materials | Discovered new exit (range 12) 1198 | -9/Materials | Core integrity fell below 50% 1215 | -9/Materials | Build established: Mutant 1233 | -9/Materials | Discovered new exit (range 8) 1247 | -9/Materials | Entered Mines 1248 | -9/Mines | Assembled infested the area 1255 | -9/Mines | Lost 4 parts (1n1u2w) 1258 | -9/Mines | Core integrity fell below 20% 1274 | -9/Mines | Destroyed by as-92331 with Assembled Rifle Last Messages --------------- as-79560 destroyed. as-19943 destroyed. as-59216 destroyed. as-94101 destroyed. as-09230 destroyed. as-81954 destroyed. as-28580 destroyed. as-88324 destroyed. as-15465 destroyed. K-01 Serf collects debris. as-43369 destroyed. as-82076 destroyed. D-53 Grenadier destroyed. as-44643 destroyed. as-14789 destroyed. as-07777 destroyed. as-07070 destroyed. U-05 Engineer destroyed. D-53 Grenadier destroyed. [Achievement: First Step to Greatness] Map ----- +----------------------------------------------------+ | ?????????????????????????????????????????????? | | ???????????????????? ???????????????????????? | | ???????????????????? ???????????????????????? | | ???????????????????? ???????????????????????? | | ???????????????????# ???????????????????????? | | ???????????????????# ???????????????????????? | | ???????????????????# ???????????????????????? | | ???????????????????# #??????????????????????? | | ???????????????????# #??????????????????????? | | ???????????????????# ##?????????????????????? | | ???????????????????? aa ????????????????????? | | ???????????????????# a ###??????????????????? | | ??????????????????? #??????????????????? | | ??????????????????## a #??????????????????? | | ??????????????????# #??????????????????? | | ?????????????????? ##?????????????????? | | ?????????????????## #?????????????????? | | ????????????????## #?????????????????? | | ?????????????#### ??????????????????? | | ????????????## % ???????????????????? | | ????????????# " !%a ????????????????????? | | ????????????# " ] #????????????????????? | | ????????????## " #####?????????????????? | | ?????????????#### %$ #?????????????????? | | ????????????????## ### #?????????????????? | | ?????????????????## @!#?????????????????????? | | ??????????????????###!%#?????????????????????? | | ????????????????????# #?????????????????????? | | ????????????????????# ????????????????????? | | ???????????????????? ???????????????????? | | ???????????????????? ??????????????????? | | ???????????????????? ## ????????????????? | | ???????????????????? ##?# ???????????????? | | ??????????????????? ???? #??????????????? | | ??????????????????? ???? ##??????????????? | | ??????????????????? ????? #???????????????? | | ??????????????????? ????? ???????????????? | | ?????????????????? ?????? k??????????????? | | ?????????????????? #??????? ??????????????? | | ?????????????????? #?????????????????????????? | | ?????????????????? ??????????????????????????? | | ?????????????????????????????????????????????? | | ?????????????????????????????????????????????? | | ?????????????????????????????????????????????? | | ?????????????????????????????????????????????? | | ?????????????????????????????????????????????? | | ?????????????????????????????????????????????? | | ?????????????????????????????????????????????? | | ?????????????????????????????????????????????? | | ?????????????????????????????????????????????? | +----------------------------------------------------+ Best States ------------- Heat Dissipation 38 Energy Generation 23 Energy Capacity 340 Matter Stores 300 Matter Capacity 300 Sight Range 16 Terrain Scan Density 10 Armor Coverage 225 Power Shielding 33 Evasion (%) 50 Recoil Reduction 1 Item Schematics ----------------- None Robot Schematics ------------------ None Fabricated ------------ Nothing Alien Tech Used ----------------- None Achievements -------------- First Step to Greatness Hunted Risk Taker Uninvited Guest Challenges ------------ None Game ------ Seed HellfireGravityHumpback Manual? 0 Play Time 00:24:59 Cumulative 1.6 hours Start 2020.09.24 @ 01:46:57 End 2020.09.24 @ 02:13:37 Sessions 1 Manual Loads 0 Difficulty Rogue Special Mode None Game No. 2 Rogue 2 Adventurer 0 Explorer 0 Win Type - Total 0 Types 0/0/0/0/0/0/0/0/0 Lore% 1 Gallery% 4 Achievement% 1 Wizard Run 0 Options --------- ASCII 0 Keyboard 0 Movement Mouse Keybinds 0 Fullscreen 0 Font 20/SmallcapsGlow Map View 76x50 Tactical HUD 0 Map Filters NONE Filters NONE Steam 1 RUN: 9abd82b7-d861-4b69-9b99-359f58a529c0